fUSD/lending_fUSD_20250812
["ID","MTS","AMOUNT","RATE_DAILY","PERIOD"]
[378785301,1755015050375,-400.0,0.00041095,30]
[378785303,1755015050385,-675.88,0.00041095,30]
[378785304,1755015050394,-400.0,0.00041095,30]
[378785305,1755015050404,-400.0,0.00041095,30]
[378785306,1755015050413,-400.0,0.00041095,30]
[378785307,1755015050422,-400.0,0.00041095,30]
[378785308,1755015050432,-1878.98,0.00041095,30]
[378785309,1755015050442,-400.0,0.00041095,30]
[378785310,1755015050451,-400.0,0.00041095,30]
[378785311,1755015050460,-400.0,0.00041095,30]
[378785312,1755015050470,-400.0,0.00041095,30]
[378785313,1755015050479,-400.0,0.00041095,30]
[378785314,1755015050489,-400.0,0.00041095,30]
[378785315,1755015050498,-400.0,0.00041095,30]
[378785316,1755015050507,-400.0,0.00041095,30]
[378785317,1755015050517,-400.0,0.00041095,30]
[378785318,1755015050526,-400.0,0.00041095,30]
[378785319,1755015050535,-400.0,0.00041095,30]
[378785320,1755015050544,-400.0,0.00041095,30]
[378785321,1755015050553,-400.0,0.00041095,30]
[378785322,1755015050562,-408.11,0.00041095,30]
[378785323,1755015050571,-581.93,0.00041095,30]
[378785324,1755015050581,-400.0,0.00041095,30]
[378785325,1755015050590,-400.0,0.00041095,30]
[378785326,1755015050599,-409.0754424,0.00041095,30]
[378785327,1755015050608,-590.05,0.00041095,30]
[378785328,1755015050618,-400.0,0.00041095,30]
[378785329,1755015050628,-448.53,0.00041095,30]
[378785330,1755015050637,-400.0,0.00041095,30]
[378785331,1755015050646,-687.85,0.00041095,30]
[378785332,1755015050655,-400.0,0.00041095,30]
[378785333,1755015050666,-400.0,0.00041095,30]
[378785334,1755015050675,-400.0,0.00041095,30]
[378785335,1755015050685,-470.64,0.00041095,30]
[378785336,1755015050694,-400.0,0.00041095,30]
[378785337,1755015050703,-400.0,0.00041095,30]
[378785338,1755015050719,-500.0,0.00041095,30]
[378785339,1755015050731,-401.52968628,0.00041095,30]
[378785340,1755015050740,-500.0,0.00041095,30]
[378785341,1755015050750,-484.87,0.00041095,30]
[378785342,1755015050759,-400.0,0.00041095,30]
[378785343,1755015050769,-787.07,0.00041095,30]
[378785344,1755015050778,-400.0,0.00041095,30]
[378785345,1755015050787,-400.0,0.00041095,30]
[378785346,1755015050796,-400.0,0.00041095,30]
[378785347,1755015050805,-400.0,0.00041095,30]
[378785348,1755015050815,-579.43,0.00041095,30]
[378785349,1755015050825,-400.0,0.00041095,30]
[378785350,1755015050834,-400.0,0.00041095,30]
[378785351,1755015050843,-400.0,0.00041095,30]
[378785352,1755015050852,-880.45,0.00041095,30]
[378785353,1755015050861,-400.0,0.00041095,30]
[378785354,1755015050871,-400.0,0.00041095,30]
[378785355,1755015050880,-400.0,0.00041095,30]
[378785356,1755015051045,-742.65,0.00041095,30]
[378785357,1755015051056,-400.0,0.00041095,30]
[378785358,1755015051065,-666.51,0.00041095,30]
[378785359,1755015051074,-400.0,0.00041095,30]
[378785360,1755015051083,-400.0,0.00041095,30]
[378785361,1755015051092,-400.0,0.00041095,30]
[378785362,1755015051102,-937.77,0.00041095,30]
[378785363,1755015051111,-400.0,0.00041095,30]
[378785364,1755015051121,-400.0,0.00041095,30]
[378785365,1755015051131,-947.81,0.00041095,30]
[378785366,1755015051141,-400.0,0.00041095,30]
[378785367,1755015051150,-400.0,0.00041095,30]
[378785368,1755015051159,-400.0,0.00041095,30]
[378785369,1755015051168,-2162.36,0.00041095,30]
[378785370,1755015051177,-1399.37,0.00041095,30]
[378785371,1755015051186,-526.74,0.00041095,30]
[378785372,1755015051197,-400.0,0.00041095,30]
[378785373,1755015051207,-1000.0,0.00041095,2]
[378785374,1755015051216,-400.0,0.00041095,30]
[378785375,1755015051225,-400.0,0.00041095,30]
[378785376,1755015051234,-400.0,0.00041095,30]
[378785377,1755015051243,-757.53,0.00041095,30]
[378785378,1755015051252,-400.0,0.00041095,30]
[378785379,1755015051261,-400.0,0.00041095,30]
[378785380,1755015051270,-400.0,0.00041095,30]
[378785381,1755015051280,-442.5,0.00041095,30]
[378785382,1755015051289,-400.0,0.00041095,30]
[378785383,1755015051298,-400.0,0.00041095,30]
[378785384,1755015051307,-637.58,0.00041095,30]
[378785385,1755015051316,-892.5,0.00041095,30]
[378785386,1755015051326,-524.02,0.00041095,30]
[378785387,1755015051335,-400.0,0.00041095,30]
[378785388,1755015051344,-400.0,0.00041095,30]
[378785389,1755015051352,-349.5605668,0.00041095,30]
[378785390,1755015051361,-400.0,0.00041095,30]
[378785391,1755015051370,-400.0,0.00041095,30]
[378785392,1755015051379,-400.0,0.00041095,7]
[378785393,1755015051390,-667.79,0.00041095,30]
[378785394,1755015051399,-400.0,0.00041095,30]
[378785395,1755015051408,-403.57,0.00041095,30]
[378785396,1755015051417,-1098.58,0.00041095,30]
[378785397,1755015051427,-896.78,0.00041095,30]
[378785398,1755015051436,-512.16,0.00041095,30]
[378785399,1755015051446,-461.96,0.00041095,30]
[378785400,1755015051455,-400.0,0.00041095,30]
[378785401,1755015051464,-400.0,0.00041095,30]
[378785402,1755015051474,-1110.39,0.00041095,30]
[378785403,1755015051483,-400.0,0.00041095,30]
[378785404,1755015051492,-400.0,0.00041095,30]
[378785405,1755015051502,-400.0,0.00041095,30]
[378785406,1755015051512,-400.0,0.00041095,30]
[378785407,1755015051521,-1107.83,0.00041095,30]
[378785408,1755015051531,-400.0,0.00041095,30]
[378785409,1755015051540,-400.0,0.00041095,30]
[378785410,1755015051549,-400.0,0.00041095,30]
[378785411,1755015051559,-400.0,0.00041095,30]
[378785412,1755015051569,-475.09,0.00041095,30]
[378785413,1755015051579,-400.0,0.00041095,30]
[378785414,1755015051588,-400.0,0.00041095,30]
[378785415,1755015051598,-400.0,0.00041095,30]
[378785416,1755015051607,-400.0,0.00041095,30]
[378785417,1755015051616,-449.72,0.00041095,30]
[378785418,1755015051626,-521.63,0.00041095,30]
[378785419,1755015051635,-400.0,0.00041095,30]
[378785420,1755015051646,-692.21,0.00041095,30]
[378785421,1755015051655,-853.21,0.00041095,14]
[378785422,1755015051664,-400.0,0.00041095,30]
[378785423,1755015051674,-1020.3,0.00041095,30]
[378785424,1755015051683,-500.0,0.00041095,30]
[378785425,1755015051693,-400.0,0.00041095,30]
[378785426,1755015051702,-500.0,0.00041095,30]
[378785427,1755015051711,-500.0,0.00041095,30]
[378785428,1755015051721,-400.0,0.00041095,30]
[378785429,1755015051730,-1546.42,0.00041095,30]
[378785430,1755015051743,-411.99019097,0.00041095,30]
[378785431,1755015051752,-400.0,0.00041095,30]
[378785432,1755015051762,-400.0,0.00041095,30]
[378785433,1755015051771,-400.0,0.00041095,30]
[378785434,1755015051781,-821.97,0.00041095,30]
[378785435,1755015051791,-400.0,0.00041095,30]
[378785436,1755015051800,-400.0,0.00041095,30]
[378785437,1755015051810,-400.0,0.00041095,30]
[378785438,1755015051819,-1030.28,0.00041095,30]
[378785439,1755015051829,-401.86,0.00041095,30]
[378785440,1755015051839,-400.0,0.00041095,30]
[378785441,1755015051861,-400.0,0.00041095,30]
[378785442,1755015051878,-400.0,0.00041095,30]
[378785443,1755015051900,-824.77,0.00041095,30]
[378785444,1755015051922,-400.0,0.00041095,30]
[378785445,1755015051936,-1000.27,0.00041095,30]
[378785446,1755015051955,-400.0,0.00041095,30]
[378785447,1755015051975,-400.0,0.00041095,30]
[378785448,1755015051994,-400.0,0.00041095,30]
[378785449,1755015052015,-463.42415725,0.00041095,30]
[378785450,1755015052033,-400.0,0.00041095,30]
[378785451,1755015052056,-557.64,0.00041095,30]
[378785452,1755015052073,-499.59,0.00041095,30]
[378785453,1755015052092,-400.0,0.00041095,30]
[378785454,1755015052106,-891.75,0.00041095,30]
[378785455,1755015052121,-400.0,0.00041095,30]
[378785456,1755015052139,-464.62,0.00041095,30]
[378785457,1755015052153,-400.0,0.00041095,30]
[378785458,1755015052170,-400.0,0.00041095,30]
[378785459,1755015052188,-400.0,0.00041095,30]
[378785460,1755015052206,-479.74,0.00041095,30]
[378785461,1755015052223,-400.0,0.00041095,30]
[378785462,1755015052239,-500.0,0.00041095,30]
[378785463,1755015052256,-500.0,0.00041095,30]
[378785464,1755015052272,-400.0,0.00041095,30]
[378785465,1755015052287,-500.0,0.00041095,30]
[378785466,1755015052302,-533.55,0.00041095,30]
[378785467,1755015052318,-500.0,0.00041095,30]
[378785468,1755015052334,-400.0,0.00041095,30]
[378785469,1755015052351,-662.96,0.00041095,30]
[378785470,1755015052366,-744.81,0.00041095,30]
[378785471,1755015052381,-400.0,0.00041095,30]
[378785472,1755015052397,-400.0,0.00041095,30]
[378785473,1755015052412,-400.0,0.00041095,30]
[378785474,1755015052427,-433.61,0.00041095,30]
[378785475,1755015052442,-423.2,0.00041095,30]
[378785476,1755015052457,-400.0,0.00041095,30]
[378785477,1755015052472,-400.0,0.00041095,30]
[378785478,1755015052487,-400.0,0.00041095,30]
[378785479,1755015052502,-400.0,0.00041095,30]
[378785480,1755015052517,-150.0,0.00041097,2]
[378785481,1755015052533,-1776.0,0.00041101,3]
[378785482,1755015052549,-150.0,0.00041109,2]
[378785483,1755015052563,-150.0,0.00041122,2]
[378785484,1755015052578,-150.0,0.00041159,2]
[378785485,1755015052595,-150.0,0.00041194,2]
[378785486,1755015052610,-2439.7822791,0.00041202,15]
[378785487,1755015052625,-150.0,0.00041214,2]
[378785488,1755015052640,-1000.0,0.00041218,14]
[378785489,1755015052654,-500.0,0.00041231,120]
[378785490,1755015052669,-150.0,0.00041231,2]
[378785491,1755015052684,-150.0,0.00041232,2]
[378785492,1755015052699,-150.0,0.00041242,2]
[378785493,1755015052713,-150.0,0.00041265,2]
[378785494,1755015052727,-157.90072315,0.00041269,15]
[378785495,1755015052742,-786.89905761,0.00041294,15]
[378785496,1755015052757,-150.0,0.00041299,2]
[378785497,1755015052772,-150.0,0.00041301,2]
[378785498,1755015052786,-150.0,0.00041302,2]
[378785499,1755015052800,-1000.0,0.00041314,14]
[378785500,1755015052815,-1000.0,0.00041319,14]
[378785501,1755015052830,-168.0,0.0004132,2]
[378785502,1755015052845,-150.0,0.00041332,2]
[378785503,1755015052862,-150.0,0.00041338,2]
[378785504,1755015052876,-16815.2046808,0.00041339,3]
[378785505,1755015052891,-14565.7215381,0.00041339,3]
[378785506,1755015052905,-150.0,0.00041343,2]
[378785507,1755015052922,-500.0,0.00041349,30]
[378785508,1755015052936,-666.0,0.00041349,120]
[378785509,1755015052952,-666.0,0.00041349,120]
[378785510,1755015052967,-666.0,0.00041349,120]
[378785511,1755015052982,-666.0,0.00041349,120]
[378785512,1755015052996,-666.0,0.00041349,120]
[378785513,1755015053011,-666.0,0.00041349,120]
[378785514,1755015053027,-666.0,0.00041349,120]
[378785515,1755015053039,-666.0,0.00041349,120]
[378785516,1755015053048,-666.0,0.00041349,120]
[378785517,1755015053057,-666.0,0.00041349,120]
[378785518,1755015053067,-666.0,0.00041349,120]
[378785519,1755015053076,-666.0,0.00041349,120]
[378785520,1755015053086,-666.0,0.00041349,120]
[378785521,1755015053095,-666.0,0.00041349,120]
[378785522,1755015053104,-666.0,0.00041349,120]
[378785523,1755015053332,-666.0,0.00041349,120]
[378785524,1755015053357,-666.0,0.00041349,120]
[378785525,1755015053369,-302.87,0.00041349,120]
[378785526,1755015053379,-33630.4093616,0.00041349,3]
[378785527,1755015053389,-43697.1646144,0.00041349,3]
[378785528,1755015053398,-16815.2046808,0.00041358,3]
[378785529,1755015053408,-500.0,0.00041358,30]
[378785530,1755015053417,-500.0,0.00041358,30]
[378785531,1755015053426,-580.6,0.00041358,30]
[378785532,1755015053436,-300.0,0.00041358,30]
[378785533,1755015053446,-300.0,0.00041358,30]
[378785534,1755015053455,-50445.6140425,0.00041359,3]
[378785535,1755015053464,-218485.823072,0.00041359,3]
[378785536,1755015053473,-150.0,0.00041366,2]
[378785537,1755015053483,-300.0,0.00041368,30]
[378785538,1755015053492,-300.0,0.00041368,30]
[378785539,1755015053501,-1000.0,0.00041368,120]
[378785540,1755015053510,-500.0,0.00041368,30]
[378785541,1755015053519,-500.0,0.00041368,30]
[378785542,1755015053529,-400.0,0.00041368,120]
[378785543,1755015053538,-500.0,0.00041368,120]
[378785544,1755015053547,-240.03152503,0.00041368,30]
[378785545,1755015053556,-551.40046704,0.00041368,30]
[378785546,1755015053567,-400.0,0.00041369,30]
[378785547,1755015053576,-500.0,0.00041369,30]
[378785548,1755015053585,-520.13,0.00041369,30]
[378785549,1755015053594,-400.0,0.00041369,30]
[378785550,1755015053604,-400.0,0.00041369,30]
[378785551,1755015053614,-400.0,0.00041369,30]
[378785552,1755015053623,-400.0,0.00041369,30]
[378785553,1755015053634,-216.93481718,0.00041369,30]
[378785554,1755015053643,-400.0,0.00041369,30]
[378785555,1755015053652,-400.0,0.00041369,30]
[378785556,1755015053661,-400.0,0.00041369,30]
[378785557,1755015053671,-400.0,0.00041369,30]
[378785558,1755015053680,-400.0,0.00041369,30]
[378785559,1755015053689,-400.0,0.00041369,30]
[378785560,1755015053699,-400.0,0.00041369,30]
[378785561,1755015053708,-400.0,0.00041369,30]
[378785562,1755015053718,-400.0,0.00041369,30]
[378785563,1755015053727,-400.0,0.00041369,30]
[378785564,1755015053736,-400.0,0.00041369,30]
[378785565,1755015053745,-400.0,0.00041369,30]
[378785566,1755015053754,-400.0,0.00041369,30]
[378785567,1755015053764,-400.0,0.00041369,30]
[378785568,1755015053773,-400.0,0.00041369,30]
[378785569,1755015053782,-400.0,0.00041369,30]
[378785570,1755015053791,-400.0,0.00041369,30]
[378785571,1755015053800,-400.0,0.00041369,30]
[378785572,1755015053810,-400.0,0.00041369,30]
[378785573,1755015053820,-400.0,0.00041369,30]
[378785574,1755015053829,-400.0,0.00041369,30]
[378785575,1755015053838,-400.0,0.00041369,30]
[378785576,1755015053847,-196.53824304,0.00041369,30]
[378785577,1755015053857,-400.0,0.00041369,30]
[378785578,1755015053866,-400.0,0.00041369,30]
[378785579,1755015053876,-400.0,0.00041369,30]
[378785580,1755015053886,-400.0,0.00041369,30]
[378785581,1755015053895,-400.0,0.00041369,30]
[378785582,1755015053906,-400.0,0.00041369,30]
[378785583,1755015053915,-400.0,0.00041369,30]
[378785584,1755015053925,-400.0,0.00041369,30]
[378785585,1755015053934,-425.05001658,0.00041369,30]
[378785586,1755015053943,-400.0,0.00041369,30]
[378785587,1755015053952,-400.0,0.00041369,30]
[378785588,1755015053961,-400.0,0.00041369,30]
[378785589,1755015053971,-400.0,0.00041369,30]
[378785590,1755015053981,-400.0,0.00041369,30]
[378785591,1755015053991,-400.0,0.00041369,30]
[378785592,1755015054001,-400.0,0.00041369,30]
[378785593,1755015054010,-400.0,0.00041369,30]
[378785594,1755015054021,-400.0,0.00041369,30]
[378785595,1755015054031,-400.0,0.00041369,30]
[378785596,1755015054040,-400.0,0.00041369,30]
[378785597,1755015054050,-400.0,0.00041369,30]
[378785598,1755015054059,-400.0,0.00041369,30]
[378785599,1755015054069,-400.0,0.00041369,30]
[378785600,1755015054078,-426.86277325,0.00041369,30]
[378785601,1755015054087,-400.0,0.00041369,30]
[378785602,1755015054096,-400.0,0.00041369,30]
[378785603,1755015054105,-402.97697907,0.00041369,30]
[378785604,1755015054115,-400.0,0.00041369,30]
[378785605,1755015054125,-400.0,0.00041369,30]
[378785606,1755015054135,-400.0,0.00041369,30]
[378785607,1755015054146,-400.0,0.00041369,30]
[378785608,1755015054157,-400.0,0.00041369,30]
[378785609,1755015054166,-400.0,0.00041369,30]
[378785610,1755015054175,-402.32005835,0.00041369,30]
[378785611,1755015054184,-400.0,0.00041369,30]
[378785612,1755015054195,-400.0,0.00041369,30]
[378785613,1755015054204,-400.0,0.00041369,30]
[378785614,1755015054213,-400.0,0.00041369,30]
[378785615,1755015054223,-400.0,0.00041369,30]
[378785616,1755015054233,-400.0,0.00041369,30]
[378785617,1755015054242,-400.0,0.00041369,30]
[378785618,1755015054252,-400.0,0.00041369,30]
[378785619,1755015054262,-400.0,0.00041369,30]
[378785620,1755015054273,-400.0,0.00041369,30]
[378785621,1755015054284,-400.0,0.00041369,30]
[378785622,1755015054294,-400.0,0.00041369,30]
[378785623,1755015054304,-400.0,0.00041369,30]
[378785624,1755015054321,-400.0,0.00041369,30]
[378785625,1755015054331,-695.5,0.00041369,30]
[378785626,1755015054342,-400.0,0.00041369,30]
[378785627,1755015054352,-548.35216436,0.00041369,30]
[378785628,1755015054363,-400.0,0.00041369,30]
[378785629,1755015054373,-400.0,0.00041369,30]
[378785630,1755015054383,-400.0,0.00041369,30]
[378785631,1755015054392,-400.0,0.00041369,30]
[378785632,1755015054402,-164.38004021,0.00041369,30]
[378785633,1755015054411,-501.63,0.00041369,30]
[378785634,1755015054421,-400.0,0.00041369,30]
[378785635,1755015054430,-400.0,0.00041369,30]
[378785636,1755015054440,-400.0,0.00041369,30]
[378785637,1755015054449,-400.0,0.00041369,30]
[378785638,1755015054459,-400.0,0.00041369,30]
[378785639,1755015054468,-400.0,0.00041369,30]
[378785640,1755015054478,-400.0,0.00041369,30]
[378785641,1755015054487,-400.0,0.00041369,30]
[378785642,1755015054497,-400.0,0.00041369,30]
[378785643,1755015054506,-300.0,0.00041369,30]
[378785644,1755015054516,-400.0,0.00041369,30]
[378785645,1755015054526,-400.0,0.00041369,30]
[378785646,1755015054535,-400.0,0.00041369,30]
[378785647,1755015054544,-400.0,0.00041369,30]
[378785648,1755015054554,-420.86,0.00041369,30]
[378785649,1755015054566,-400.0,0.00041369,30]
[378785650,1755015054576,-400.0,0.00041369,30]
[378785651,1755015054586,-400.0,0.00041369,30]
[378785652,1755015054596,-400.0,0.00041369,30]
[378785653,1755015054606,-400.0,0.00041369,30]
[378785654,1755015054616,-400.0,0.00041369,30]
[378785655,1755015054626,-427.08,0.00041369,30]
[378785656,1755015054636,-400.0,0.00041369,30]
[378785657,1755015054646,-400.0,0.00041369,30]
[378785658,1755015054655,-400.0,0.00041369,30]
[378785659,1755015054665,-400.0,0.00041369,30]
[378785660,1755015054675,-400.0,0.00041369,30]
[378785661,1755015054685,-400.0,0.00041369,30]
[378785662,1755015054694,-400.0,0.00041369,30]
[378785663,1755015054703,-37.30664432,0.00041369,30]
[378785664,1755015055195,-404.68350004,0.00039861,3]
[378785665,1755015055207,-483.31649996,0.00039861,3]
[378785666,1755015055216,-400.0,0.00041095,30]
[378785667,1755015055225,-362.69335568,0.00041369,30]
[378785668,1755015055235,-400.0,0.00041369,30]
[378785669,1755015055244,-154.23804436,0.00041369,30]
[378785670,1755015055255,-289.78195564,0.00041369,30]
[378785671,1755015055264,-400.0,0.00041369,30]
[378785672,1755015055274,-70.51035601,0.00041369,30]
[378785673,1755015055300,-329.48964399,0.00041369,30]
[378785674,1755015055310,-400.0,0.00041369,30]
[378785675,1755015055320,-230.69182249,0.00041369,30]
[378785676,1755015055332,-169.30817751,0.00041369,30]
[378785677,1755015055341,-400.0,0.00041369,30]
[378785678,1755015055350,-400.0,0.00041369,30]
[378785679,1755015055360,-400.0,0.00041369,30]
[378785680,1755015055369,-400.0,0.00041369,30]
[378785681,1755015055380,-629.32,0.00041369,30]
[378785682,1755015055390,-273.8860127,0.00041369,30]
[378785683,1755015055399,-400.0,0.00041369,30]
[378785684,1755015055408,-514.06,0.00041369,30]
[378785685,1755015055417,-400.0,0.00041369,30]
[378785686,1755015055426,-400.0,0.00041369,30]
[378785687,1755015055436,-400.0,0.00041369,30]
[378785688,1755015055446,-400.0,0.00041369,30]
[378785689,1755015055456,-407.03905156,0.00041369,30]
[378785690,1755015055465,-400.0,0.00041369,30]
[378785691,1755015055475,-543.43,0.00041369,30]
[378785692,1755015055484,-514.04,0.00041369,30]
[378785693,1755015055493,-1222.28,0.00041369,30]
[378785694,1755015055503,-385.69515052,0.00041369,2]
[378785695,1755015055512,-518.05839413,0.00041369,30]
[378785696,1755015055522,-400.0,0.00041369,30]
[378785697,1755015055532,-400.0,0.00041369,30]
[378785698,1755015055541,-400.0,0.00041369,30]
[378785699,1755015055551,-358.80542911,0.00041369,30]
[378785700,1755015055560,-74.17810368,0.00041369,30]
[378785701,1755015055575,-323.88565289,0.00041369,30]
[378785702,1755015055585,-80.85753809,0.00041369,30]
[378785703,1755015056283,-888.0,0.00040895,2]
[378785704,1755015056459,-112.0,0.00040895,2]
[378785705,1755015056469,-400.0,0.00041095,30]
[378785706,1755015056478,-319.14246191,0.00041369,30]
[378785707,1755015056487,-400.0,0.00041369,30]
[378785708,1755015056497,-400.0,0.00041369,30]
[378785709,1755015056506,-400.0,0.00041369,30]
[378785710,1755015056515,-1141.31,0.00041369,30]
[378785711,1755015056524,-400.0,0.00041369,30]
[378785712,1755015056534,-23.85577718,0.00041369,30]
[378785713,1755015056546,-376.14422282,0.00041369,30]
[378785714,1755015056555,-400.0,0.00041369,30]
[378785715,1755015056564,-400.0,0.00041369,30]
[378785716,1755015056574,-416.96,0.00041369,30]
[378785717,1755015056583,-400.0,0.00041369,30]
[378785718,1755015056592,-400.0,0.00041369,30]
[378785719,1755015056601,-400.0,0.00041369,30]
[378785720,1755015056610,-400.0,0.00041369,30]
[378785721,1755015056619,-400.0,0.00041369,30]
[378785722,1755015056628,-400.0,0.00041369,30]
[378785723,1755015056638,-400.0,0.00041369,30]
[378785724,1755015056647,-400.0,0.00041369,30]
[378785725,1755015056657,-400.0,0.00041369,30]
[378785726,1755015056666,-400.0,0.00041369,30]
[378785727,1755015056676,-544.29,0.00041369,30]
[378785728,1755015056686,-400.0,0.00041369,30]
[378785729,1755015056695,-400.0,0.00041369,30]
[378785730,1755015056704,-400.0,0.00041369,30]
[378785731,1755015056713,-400.0,0.00041369,30]
[378785732,1755015056723,-459.18,0.00041369,30]
[378785733,1755015056733,-400.0,0.00041369,30]
[378785734,1755015056742,-400.0,0.00041369,30]
[378785735,1755015056752,-400.0,0.00041369,30]
[378785736,1755015056761,-400.0,0.00041369,30]
[378785737,1755015056771,-400.0,0.00041369,30]
[378785738,1755015056780,-400.0,0.00041369,30]
[378785739,1755015056789,-400.0,0.00041369,30]
[378785740,1755015056799,-400.0,0.00041369,30]
[378785741,1755015056808,-208.11794044,0.00041369,30]
[378785742,1755015056819,-400.0,0.00041369,30]
[378785743,1755015056828,-618.08,0.00041369,30]
[378785744,1755015056838,-400.0,0.00041369,30]
[378785745,1755015056847,-400.0,0.00041369,30]
[378785746,1755015056856,-400.0,0.00041369,30]
[378785747,1755015056866,-400.0,0.00041369,30]
[378785748,1755015056876,-400.0,0.00041369,30]
[378785749,1755015056887,-400.0,0.00041369,30]
[378785750,1755015056897,-400.0,0.00041369,30]
[378785751,1755015056908,-400.0,0.00041369,30]
[378785752,1755015056920,-400.0,0.00041369,30]
[378785753,1755015056929,-400.0,0.00041369,30]
[378785754,1755015056938,-400.0,0.00041369,30]
[378785755,1755015056948,-400.0,0.00041369,30]
[378785756,1755015056958,-716.97,0.00041369,30]
[378785757,1755015056968,-400.0,0.00041369,30]
[378785758,1755015056978,-400.0,0.00041369,30]
[378785759,1755015056987,-400.0,0.00041369,30]
[378785760,1755015056996,-612.54,0.00041369,30]
[378785761,1755015057006,-400.0,0.00041369,30]
[378785762,1755015057015,-400.0,0.00041369,30]
[378785763,1755015057025,-400.0,0.00041369,30]
[378785764,1755015057035,-400.0,0.00041369,30]
[378785765,1755015057046,-852.43,0.00041369,30]
[378785766,1755015057055,-262.53483674,0.00041369,30]
[378785767,1755015057073,-137.46516326,0.00041369,30]
[378785768,1755015057083,-400.0,0.00041369,30]
[378785769,1755015057092,-350.53483674,0.00041369,30]
[378785770,1755015057107,-49.46516326,0.00041369,30]
[378785771,1755015057118,-400.0,0.00041369,30]
[378785772,1755015057127,-400.0,0.00041369,30]
[378785773,1755015057136,-566.95,0.00041369,30]
[378785774,1755015057146,-400.0,0.00041369,30]
[378785775,1755015057155,-400.0,0.00041369,30]
[378785776,1755015057164,-400.0,0.00041369,30]
[378785777,1755015057173,-400.0,0.00041369,30]
[378785778,1755015057183,-400.0,0.00041369,30]
[378785779,1755015057193,-400.0,0.00041369,30]
[378785780,1755015057201,-400.0,0.00041369,30]
[378785781,1755015057212,-400.0,0.00041369,30]
[378785782,1755015057222,-552.75,0.00041369,30]
[378785783,1755015057232,-448.89224441,0.00041369,30]
[378785784,1755015057242,-400.0,0.00041369,30]
[378785785,1755015057251,-400.0,0.00041369,30]
[378785786,1755015057261,-400.0,0.00041369,30]
[378785787,1755015057270,-400.0,0.00041369,30]
[378785788,1755015057279,-400.0,0.00041369,30]
[378785789,1755015057288,-400.0,0.00041369,30]
[378785790,1755015057298,-400.0,0.00041369,30]
[378785791,1755015057307,-407.83,0.00041369,30]
[378785792,1755015057316,-400.0,0.00041369,30]
[378785793,1755015057326,-400.0,0.00041369,30]
[378785794,1755015057335,-400.0,0.00041369,30]
[378785795,1755015057344,-400.0,0.00041369,30]
[378785796,1755015057354,-400.0,0.00041369,30]
[378785797,1755015057363,-400.0,0.00041369,30]
[378785798,1755015057373,-400.0,0.00041369,30]
[378785799,1755015057383,-400.0,0.00041369,30]
[378785800,1755015057393,-400.0,0.00041369,30]
[378785801,1755015057404,-400.0,0.00041369,30]